bitfinex/quotes_SOLUSD_20251202
["timestamp","ask_amount","ask_price","bid_price","bid_amount"]
[1764673596189,3.40387652,128.37,128.35,68.97119594]
[1764673596497,4.12387652,128.37,128.35,68.97119594]
[1764673599572,4.12387652,128.37,128.35,61.18]
[1764673599973,0.71,128.39,128.36,0.69]
[1764673600198,8.49635149,128.43,128.38,0.14216157]
[1764673600498,4.11387652,128.43,128.39,0.69]
[1764673600668,3.40387652,128.42,128.39,0.69]
[1764673600873,4.11387652,128.42,128.39,0.69]
[1764673601691,4.11387652,128.42,128.4,7.78816199]
[1764673602175,0.71,128.42,128.4,7.78816199]
[1764673602580,3.40387652,128.43,128.4,7.78816199]
[1764673602781,12.74387652,128.44,128.41,0.72]
[1764673603100,12.04387652,128.44,128.4,27.25856697]
[1764673603280,0.7,128.43,128.4,27.97856697]
[1764673604076,8.64,128.44,128.41,0.86216157]
[1764673604279,4.10387652,128.46,128.41,0.86216157]
[1764673605102,3.40387652,128.47,128.42,3.40387652]
[1764673605274,12.04387652,128.48,128.44,0.14216157]
[1764673605603,8.64,128.48,128.44,0.14216157]
[1764673605800,3.40387652,128.46,128.44,0.14216157]
[1764673605990,3.40387652,128.46,128.43,0.14216157]
[1764673606179,4.10387652,128.46,128.44,7.78573653]
[1764673610003,4.10387652,128.45,128.44,7.78573653]
[1764673610187,4.10387652,128.45,128.42,7.78694907]
[1764673610387,4.10387652,128.44,128.42,7.78694907]
[1764673610705,4.10387652,128.44,128.42,68.96694907]
[1764673611004,0.7,128.44,128.42,68.96694907]
[1764673615398,0.7,128.46,128.42,89.15432175]
[1764673615706,3.40387652,128.46,128.42,89.15432175]
[1764673615906,0.7,128.45,128.42,89.15432175]
[1764673616280,3.40387652,128.46,128.42,89.15432175]
[1764673616486,0.7,128.45,128.42,89.15432175]
[1764673616907,0.7,128.46,128.43,0.86216157]
[1764673617510,0.7,128.46,128.44,7.78573653]
[1764673619815,4.10387652,128.46,128.44,7.78573653]
[1764673622408,0.7,128.5,128.45,4.26603809]
[1764673622612,3.40387652,128.51,128.47,0.14216157]
[1764673622801,3.40387652,128.53,128.48,3.40387652]
[1764673622982,9.32,128.54,128.5,0.14216157]
[1764673622983,12.72387652,128.54,128.5,0.14216157]
[1764673623389,0.7,128.53,128.5,0.86216157]
[1764673624008,12.02387652,128.54,128.51,7.7814956]
[1764673624215,0.7,128.54,128.52,0.14216157]
[1764673624393,4.10387652,128.54,128.52,0.14216157]
[1764673624590,3.40387652,128.54,128.52,0.14216157]
[1764673624790,4.10387652,128.53,128.51,27.2352346]
[1764673625001,3.40387652,128.52,128.51,7.7814956]
[1764673625202,4.10387652,128.52,128.51,7.7814956]
[1764673625590,4.10387652,128.54,128.51,8.5014956]
[1764673625790,4.20387652,128.55,128.51,8.5014956]
[1764673625990,4.20387652,128.55,128.51,27.9552346]
[1764673626386,3.40387652,128.53,128.51,27.2352346]
[1764673626594,3.40387652,128.52,128.51,7.7814956]
[1764673626811,3.40387652,128.53,128.51,7.7814956]
[1764673627193,4.10387652,128.53,128.51,7.7814956]
[1764673627717,4.10387652,128.53,128.5,27.37951564]
[1764673628223,3.40387652,128.52,128.5,27.37951564]
[1764673628418,3.40387652,128.51,128.48,68.96275151]
[1764673628623,3.40387652,128.5,128.48,68.96275151]
[1764673628801,4.10387652,128.5,128.48,68.96275151]
[1764673629816,3.40387652,128.49,128.48,68.96275151]
[1764673630011,4.10387652,128.49,128.47,61.18]
[1764673630207,3.40387652,128.48,128.47,61.18]
[1764673630412,4.10387652,128.48,128.47,61.18]
[1764673631120,4.10387652,128.48,128.44,61.9]
[1764673631327,3.40387652,128.45,128.43,7.78634275]
[1764673631527,3.40387652,128.44,128.41,7.78755548]
[1764673631834,4.08387652,128.44,128.41,27.93644419]
[1764673632031,3.40387652,128.43,128.41,7.78755548]
[1764673632430,3.40387652,128.43,128.41,8.46755548]
[1764673632625,3.40387652,128.43,128.41,7.78755548]
[1764673633505,3.40387652,128.43,128.4,27.2579232]
[1764673633706,3.40387652,128.42,128.4,7.78816199]
[1764673633906,4.08387652,128.42,128.4,7.78816199]
[1764673634204,4.08387652,128.41,128.4,7.78816199]
[1764673634711,9.3,128.44,128.4,8.61032356]
[1764673634922,3.40387652,128.42,128.4,8.61032356]
[1764673635123,3.40387652,128.42,128.4,7.93032356]
[1764673635835,3.40387652,128.43,128.4,27.40072854]
[1764673636014,3.40387652,128.43,128.4,28.08072854]
[1764673638126,4.08387652,128.43,128.4,28.08072854]
[1764673638536,3.40387652,128.44,128.41,0.82216157]
[1764673639310,3.40387652,128.43,128.41,61.32216157]
[1764673639532,3.40387652,128.43,128.41,62.00216157]
[1764673639915,3.40387652,128.43,128.41,69.10956583]
[1764673640413,4.08387652,128.42,128.4,7.78809612]
[1764673640609,3.40387652,128.41,128.4,7.78809612]
[1764673640815,4.08387652,128.42,128.4,7.78809612]
[1764673641136,0.68,128.42,128.39,0.14216157]
[1764673641338,3.40387652,128.41,128.39,7.78871455]
[1764673641536,4.08387652,128.42,128.39,8.46871455]
[1764673642642,3.40387652,128.41,128.39,7.78871455]
[1764673642841,3.40387652,128.42,128.39,7.78871455]
[1764673643026,3.40387652,128.43,128.4,0.68]
[1764673643425,4.08387652,128.43,128.4,0.68]
[1764673643829,3.40387652,128.42,128.39,27.26063603]
[1764673644113,3.40387652,128.42,128.4,0.14216157]
[1764673644311,4.08387652,128.43,128.4,0.82216157]
[1764673644532,0.68,128.43,128.4,0.82216157]
[1764673644740,3.40387652,128.42,128.4,0.14216157]
[1764673645052,4.08387652,128.43,128.4,0.14216157]
[1764673645239,4.08387652,128.43,128.4,0.82216157]
[1764673645615,3.40387652,128.45,128.4,0.82216157]
[1764673645823,4.08387652,128.44,128.4,0.82216157]
[1764673646023,3.40387652,128.43,128.4,0.82216157]
[1764673646226,3.40387652,128.42,128.41,7.78755548]
[1764673646636,3.40387652,128.43,128.41,7.78755548]
[1764673646835,16.4041259,128.47,128.42,0.14216157]
[1764673647042,3.40387652,128.44,128.42,61.32216157]
[1764673648418,3.40387652,128.44,128.43,7.78634275]
[1764673650542,2.17575307,128.44,128.43,7.78634275]
[1764673651240,0.68,128.45,128.43,7.78634275]
[1764673651451,2.85575307,128.45,128.43,7.78634275]
[1764673652450,2.89575307,128.45,128.43,7.78634275]
[1764673654032,2.89575307,128.47,128.44,61.89]
[1764673654444,2.17575307,128.47,128.46,7.78452436]
[1764673654646,2.17575307,128.48,128.46,7.78452436]
[1764673654833,2.17575307,128.49,128.47,0.14216157]
[1764673655040,2.89575307,128.5,128.47,0.85216157]
[1764673655729,16.4011515,128.52,128.46,27.24583527]
[1764673655730,2.89575307,128.49,128.46,27.24583527]
[1764673656129,8.62,128.52,128.46,7.78452436]
[1764673656130,2.89575307,128.48,128.46,7.78452436]
[1764673659157,0.72,128.47,128.46,7.78452436]
[1764673659541,2.17575307,128.48,128.46,7.78452436]
[1764673659743,2.89575307,128.48,128.46,7.78452436]
[1764673660158,2.17575307,128.48,128.46,7.78452436]
[1764673660361,2.89575307,128.47,128.46,68.96452436]
[1764673660564,2.89575307,128.47,128.45,7.7850076]
[1764673660862,2.89575307,128.46,128.45,7.7850076]
[1764673661663,2.17575307,128.47,128.45,7.7850076]
[1764673661860,2.84575307,128.47,128.45,7.7850076]
[1764673662535,2.17575307,128.46,128.45,7.7850076]
[1764673663162,2.84575307,128.47,128.45,7.7850076]
[1764673663456,2.17575307,128.46,128.45,7.7850076]
[1764673664737,2.84575307,128.46,128.45,7.7850076]
[1764673666266,2.84575307,128.46,128.44,68.96548566]
[1764673666461,2.84575307,128.45,128.44,68.96548566]
[1764673667861,2.84575307,128.45,128.44,61.18]
[1764673668058,11.46575307,128.45,128.44,61.18]
[1764673668362,11.46575307,128.45,128.42,68.96684215]
[1764673668544,2.17575307,128.43,128.42,68.96684215]
[1764673668856,2.84575307,128.44,128.42,68.96684215]
[1764673670661,0.67,128.44,128.42,68.96684215]
[1764673670862,2.84575307,128.44,128.42,68.96684215]
[1764673673541,8.62,128.45,128.42,61.18]
[1764673673542,2.84575307,128.43,128.42,61.18]
[1764673674671,2.84575307,128.43,128.39,7.78846681]
[1764673674885,2.17575307,128.41,128.39,68.96846681]
[1764673675374,2.84575307,128.41,128.39,68.96846681]
[1764673676148,0.67,128.4,128.39,68.96846681]
[1764673676744,2.84575307,128.41,128.39,68.96846681]
[1764673677548,2.84575307,128.4,128.39,61.18]
[1764673677948,2.84575307,128.4,128.39,68.96876859]
[1764673678357,2.84575307,128.4,128.39,61.18]
[1764673678570,0.67,128.4,128.39,61.18]
[1764673678874,2.84575307,128.4,128.39,61.18]
[1764673679064,2.84575307,128.4,128.39,68.96876859]
[1764673681475,0.67,128.4,128.39,68.96876859]
[1764673681675,8.80994492,128.43,128.39,89.15069007]
[1764673681676,11.46575307,128.43,128.39,89.15069007]
[1764673681890,0.67,128.42,128.39,89.15069007]
[1764673682192,2.84575307,128.42,128.39,89.15069007]
[1764673682376,2.84575307,128.42,128.39,88.44069007]
[1764673682558,8.62,128.43,128.39,68.96876859]
[1764673682559,2.17575307,128.4,128.39,68.96876859]
[1764673682760,2.17575307,128.4,128.39,7.78876859]
[1764673683069,2.17575307,128.41,128.39,7.78876859]
[1764673683261,2.17575307,128.42,128.4,0.71]
[1764673683462,2.17575307,128.42,128.39,8.49876859]
[1764673684270,2.84575307,128.42,128.39,8.49876859]
[1764673684781,2.84575307,128.42,128.39,7.78876859]
[1764673685081,2.84575307,128.41,128.39,7.78876859]
[1764673685280,2.17575307,128.4,128.39,7.78876859]
[1764673685450,2.17575307,128.4,128.38,7.78937529]
[1764673686068,2.17575307,128.4,128.38,8.49937529]
[1764673686267,2.84575307,128.4,128.38,7.78937529]
[1764673686477,0.67,128.39,128.38,7.78937529]
[1764673687480,2.84575307,128.39,128.38,7.78937529]
[1764673688679,2.84575307,128.39,128.37,61.18]
[1764673688867,11.65569799,128.38,128.35,61.18]
[1764673689067,2.84575307,128.38,128.35,61.18]
[1764673689874,0.67,128.37,128.35,61.18]
[1764673690384,0.67,128.37,128.35,68.97072128]
[1764673690973,2.84575307,128.37,128.35,61.18]
[1764673691987,0.67,128.37,128.35,61.18]
[1764673692289,2.84575307,128.37,128.35,61.18]
[1764673693585,2.17575307,128.36,128.35,61.18]
[1764673694886,2.87575307,128.36,128.35,61.18]
[1764673696595,2.87575307,128.36,128.33,62.09]
[1764673696797,2.17575307,128.35,128.33,69.88226247]
[1764673699397,2.87575307,128.34,128.33,61.38]
[1764673699710,2.87575307,128.34,128.33,0.2]
[1764673700084,11.68569799,128.34,128.33,0.2]
[1764673700688,0.7,128.34,128.33,0.2]
[1764673700901,2.17575307,128.34,128.33,0.2]
[1764673701211,2.87575307,128.34,128.33,0.2]
[1764673702905,11.68569799,128.34,128.33,0.2]
[1764673703795,19.47750101,128.34,128.33,0.2]
[1764673706797,2.17575307,128.34,128.33,0.2]
[1764673707618,2.87575307,128.34,128.33,0.2]
[1764673709330,2.17575307,128.34,128.33,0.2]
[1764673709505,2.87575307,128.34,128.33,0.2]
[1764673709919,0.7,128.34,128.33,0.2]
[1764673710107,2.87575307,128.34,128.33,0.2]
[1764673712005,8.62,128.35,128.33,0.2]
[1764673712006,2.17575307,128.35,128.33,8.68241019]
[1764673712204,2.17575307,128.35,128.33,69.86241019]
[1764673712507,3.40437734,128.35,128.33,69.86241019]
[1764673713709,25.598864,128.36,128.33,69.86241019]
[1764673713906,3.40437734,128.35,128.33,69.86241019]
[1764673714509,3.40437734,128.34,128.33,69.86241019]
[1764673715706,4.07437734,128.34,128.33,61.38]
[1764673716317,4.07437734,128.34,128.33,69.17241019]
[1764673716517,3.40437734,128.34,128.33,69.17241019]
[1764673716906,4.07437734,128.34,128.33,69.17241019]
[1764673717727,4.07437734,128.34,128.33,61.38]
[1764673717907,20.67612528,128.34,128.33,0.2]
[1764673720428,29.29612528,128.34,128.33,0.2]
[1764673721733,8.80994492,128.33,128.32,0.2]
[1764673721933,20.69673245,128.33,128.32,0.2]
[1764673723614,40.40997379,128.33,128.32,0.2]
[1764673724848,24.10110979,128.33,128.32,0.2]
[1764673727120,43.58213527,128.33,128.31,0.2]
[1764673727434,41.2375636,128.32,128.31,0.2]
[1764673728138,49.03058105,128.32,128.31,0.2]
[1764673728934,8.80994492,128.31,128.3,0.2]
[1764673729128,12.90432226,128.31,128.3,0.2]
[1764673730347,20.69794707,128.31,128.3,0.2]
[1764673732064,40.1820091,128.31,128.29,0.2]
[1764673732222,12.71437734,128.3,128.27,0.2]
[1764673732565,12.21432226,128.28,128.27,0.2]
[1764673732721,37.14318626,128.28,128.27,0.2]
[1764673732923,37.83318626,128.28,128.27,0.2]
[1764673734643,45.62863371,128.28,128.27,0.2]
[1764673738253,28.52318626,128.28,128.27,0.2]
[1764673738441,20.83432226,128.28,128.27,0.2]
[1764673740184,3.40437734,128.28,128.27,0.88]
[1764673740342,3.40437734,128.28,128.27,8.67605519]
[1764673740737,8.62,128.29,128.27,8.67605519]
[1764673740954,3.40437734,128.28,128.27,7.99605519]
[1764673741154,8.62,128.29,128.27,7.99605519]
[1764673741459,12.02437734,128.29,128.28,0.68]
[1764673741660,12.02437734,128.29,128.28,8.47544745]
[1764673742234,8.48213533,128.34,128.28,8.61760902]
[1764673742440,3.40437734,128.3,128.29,0.68]
[1764673742858,3.40437734,128.3,128.28,7.79544745]
[1764673743162,12.02437734,128.29,128.27,8.67592813]
[1764673743458,3.40437734,128.28,128.27,8.67592813]
[1764673743674,3.40437734,128.28,128.27,7.99592813]
[1764673743965,3.40437734,128.28,128.27,0.2]
[1764673743966,12.21432226,128.28,128.27,0.2]
[1764673744169,12.90432226,128.28,128.27,0.2]
[1764673745253,20.69976971,128.28,128.27,0.2]
[1764673748452,20.00976971,128.28,128.27,0.2]
[1764673748650,20.69976971,128.28,128.27,0.2]
[1764673750848,16.308864,128.28,128.27,0.88]
[1764673751173,12.02437734,128.28,128.27,0.2]
[1764673757477,8.62,128.28,128.27,0.2]
[1764673757676,12.02437734,128.28,128.27,0.2]
[1764673759560,28.62976971,128.28,128.27,0.2]
[1764673759762,29.27976971,128.28,128.27,0.2]
[1764673761066,28.62976971,128.28,128.27,0.2]
[1764673761263,29.27976971,128.28,128.27,0.2]
[1764673761581,28.62976971,128.28,128.27,0.2]
[1764673761963,29.27976971,128.28,128.27,0.2]
[1764673769387,25.87539237,128.28,128.27,0.2]
[1764673769588,29.27976971,128.28,128.27,0.2]
[1764673771790,20.83432226,128.28,128.27,0.2]
[1764673772293,28.62976971,128.28,128.27,0.2]
[1764673772895,20.83432226,128.28,128.27,0.2]
[1764673773197,21.55432226,128.28,128.27,0.2]
[1764673773566,20.83432226,128.28,128.27,0.2]
[1764673774070,21.55432226,128.28,128.27,0.2]
[1764673774487,20.33156813,128.28,128.27,0.2]
[1764673775210,19.61156813,128.28,128.27,0.2]
[1764673775781,20.33156813,128.28,128.27,0.2]
[1764673778694,19.61156813,128.28,128.27,0.2]
[1764673778873,20.33156813,128.28,128.27,0.2]
[1764673780296,19.61156813,128.28,128.27,0.2]
[1764673780497,10.80162321,128.28,128.27,0.86]
[1764673780679,2.18162321,128.28,128.27,0.86]
[1764673780875,10.80162321,128.28,128.27,0.86]
[1764673781602,38.94888082,128.38,128.27,8.65573886]
[1764673781899,10.80162321,128.32,128.28,0.68]
[1764673782087,10.80162321,128.32,128.29,0.14216157]
[1764673782493,8.62,128.32,128.3,0.68]
[1764673782691,8.62,128.32,128.31,7.79362481]
[1764673783295,19.47573468,128.37,128.31,8.47362481]
[1764673783296,2.18162321,128.34,128.31,8.47362481]
[1764673783498,10.80162321,128.34,128.32,0.68]
[1764673784383,10.80162321,128.34,128.32,8.47259329]
[1764673785002,2.18162321,128.33,128.32,7.79259329]
[1764673786002,2.18162321,128.33,128.3,27.27872106]
[1764673786210,2.18162321,128.33,128.32,0.68]
[1764673786507,2.18162321,128.33,128.31,0.68]
[1764673788310,2.18162321,128.33,128.32,7.79301745]
[1764673788610,9.34,128.34,128.32,7.79301745]
[1764673788803,2.18162321,128.33,128.32,7.79301745]
[1764673790389,9.34,128.34,128.32,7.79301745]
[1764673790588,2.18162321,128.33,128.32,7.79301745]
[1764673791586,2.18162321,128.33,128.31,8.47334923]
[1764673792810,2.18162321,128.33,128.31,70.37334923]
[1764673792986,10.80162321,128.34,128.32,0.68]
[1764673793708,8.62,128.34,128.32,62.58]
[1764673793898,10.80162321,128.36,128.32,62.58]
[1764673794105,8.62,128.36,128.33,0.68]
[1764673794308,10.80162321,128.36,128.33,0.68]
[1764673794815,10.80162321,128.36,128.34,7.79180302]
[1764673795313,8.62,128.36,128.34,8.47180302]
[1764673795511,8.62,128.36,128.34,27.95131057]
[1764673795817,8.62,128.36,128.35,0.68]
[1764673796503,18.49048721,128.37,128.35,0.68]
[1764673796713,27.11048721,128.37,128.35,0.68]
[1764673796888,27.11048721,128.37,128.35,8.47061389]
[1764673797713,11.71156813,128.36,128.33,7.79241019]
[1764673798013,10.99156813,128.36,128.34,0.68]
[1764673798215,2.18162321,128.36,128.34,0.68]
[1764673799116,2.18162321,128.36,128.34,8.47149785]
[1764673799486,2.18162321,128.36,128.34,70.37149785]
[1764673800008,10.99156813,128.36,128.34,61.9]
[1764673800208,10.80162321,128.35,128.34,61.9]
[1764673800412,2.18162321,128.37,128.34,69.69180302]
[1764673800611,8.62,128.37,128.34,69.69180302]
[1764673800812,10.80162321,128.37,128.34,69.69180302]
[1764673800993,2.18162321,128.36,128.34,69.69180302]
[1764673801188,2.18162321,128.35,128.34,69.69180302]
[1764673801396,11.52162321,128.35,128.34,69.69180302]
[1764673801909,10.80162321,128.35,128.34,69.69180302]
[1764673804111,8.62,128.35,128.34,69.69180302]
[1764673804419,8.62,128.35,128.34,7.79180302]
[1764673805723,2.18162321,128.36,128.34,27.95131057]
[1764673805907,8.62,128.36,128.34,27.95131057]
[1764673806403,10.80162321,128.36,128.34,27.95131057]
[1764673807204,8.62,128.36,128.34,27.95131057]
[1764673808011,8.80994492,128.38,128.35,0.68]
[1764673808329,2.18162321,128.37,128.35,0.68]
[1764673808697,2.18162321,128.4,128.35,64.76162321]
[1764673808904,10.80162321,128.39,128.36,0.14216157]
[1764673809206,10.80162321,128.39,128.36,0.82216157]
[1764673809404,2.18162321,128.39,128.36,0.82216157]
[1764673809920,2.18162321,128.39,128.37,7.78998208]
[1764673810224,2.18162321,128.41,128.37,27.26493728]
[1764673810393,2.18162321,128.41,128.38,0.68]
[1764673811089,11.62162321,128.42,128.38,0.68]
[1764673811294,0.1,128.42,128.39,0.14216157]
[1764673811724,0.1,128.42,128.4,0.68]
[1764673812127,0.1,128.42,128.41,7.78755548]
[1764673812424,0.1,128.42,128.41,8.60971705]
[1764673814420,2.18162321,128.48,128.42,0.14216157]
[1764673814615,2.18162321,128.48,128.44,0.14216157]
[1764673815130,2.18162321,128.48,128.45,0.68]
[1764673815917,2.90162321,128.48,128.45,0.68]
[1764673816424,2.90162321,128.48,128.46,7.78452436]
[1764673818508,2.18162321,128.47,128.46,7.78452436]
[1764673819437,2.18162321,128.47,128.45,69.68490072]
[1764673819731,2.18162321,128.47,128.45,70.36490072]
[1764673820308,2.18162321,128.47,128.45,89.82772672]
[1764673821025,2.90162321,128.47,128.45,89.14772672]
[1764673821237,2.90162321,128.47,128.44,0.14216157]
[1764673821238,11.71156813,128.46,128.44,7.78572801]
[1764673821419,2.18162321,128.45,128.44,7.78572801]
[1764673821814,2.18162321,128.45,128.43,27.25218662]
[1764673822008,2.18162321,128.44,128.43,27.25218662]
[1764673823641,2.18162321,128.46,128.44,0.14216157]
[1764673823815,10.78162321,128.47,128.45,7.7851304]
[1764673824324,11.50162321,128.47,128.45,7.7851304]
[1764673824527,2.18162321,128.46,128.45,69.6851304]
[1764673828824,2.90162321,128.46,128.45,61.9]
[1764673829533,11.71156813,128.46,128.44,61.9]
[1764673829759,2.90162321,128.45,128.44,61.9]
[1764673831151,8.80994492,128.44,128.41,61.9]
[1764673831365,2.18162321,128.42,128.39,7.78845848]
[1764673831532,2.18162321,128.4,128.39,7.78845848]
[1764673831730,2.18162321,128.4,128.37,27.26417026]
[1764673831940,2.18162321,128.4,128.38,0.68]
[1764673832657,16.38651967,128.43,128.37,7.78998208]
[1764673832658,2.18162321,128.39,128.37,7.78998208]
[1764673832861,2.18162321,128.38,128.37,7.78998208]
[1764673833832,2.84162321,128.38,128.36,7.79058896]
[1764673834056,2.18162321,128.37,128.34,70.37180302]
[1764673834565,3.4034525,128.37,128.34,70.37180302]
[1764673835058,3.4034525,128.37,128.34,89.17131057]
[1764673835059,3.4034525,128.36,128.34,89.17131057]
[1764673835267,3.4034525,128.35,128.34,69.69180302]
[1764673835560,3.4034525,128.36,128.34,7.79180302]
[1764673838143,0.66,128.37,128.34,7.79180302]
[1764673838346,3.4034525,128.36,128.34,7.79180302]
[1764673838869,4.0634525,128.35,128.34,61.9]
[1764673839468,4.0634525,128.35,128.33,61.9]
[1764673839625,7.79061602,128.36,128.33,61.9]
[1764673839626,4.0634525,128.34,128.33,61.9]
[1764673840244,4.0634525,128.34,128.33,69.69241019]
[1764673842561,3.4034525,128.34,128.33,69.69241019]
[1764673843150,17.08999891,128.37,128.33,69.69241019]
[1764673843362,3.4034525,128.35,128.33,69.69241019]
[1764673844040,3.4034525,128.35,128.33,70.36241019]
[1764673844340,3.4034525,128.36,128.33,69.69241019]
[1764673844772,3.4034525,128.36,128.34,0.67]
[1764673845944,3.4034525,128.36,128.33,69.69241019]
[1764673845945,3.4034525,128.36,128.33,70.36241019]
[1764673846442,4.1034525,128.36,128.33,70.36241019]
[1764673846778,3.4034525,128.35,128.33,70.36241019]
[1764673849868,4.1034525,128.36,128.33,70.36241019]
[1764673850072,3.4034525,128.35,128.33,70.36241019]
[1764673854383,3.4034525,128.34,128.33,61.9]
[1764673854561,29.0323165,128.34,128.29,61.9]
[1764673854759,3.4034525,128.3,128.28,70.3649251]
[1764673857184,0.7,128.32,128.28,89.18354374]
[1764673857379,3.4034525,128.31,128.28,89.85354374]
[1764673857986,3.4034525,128.29,128.28,7.7949251]
[1764673858587,4.1034525,128.3,128.28,7.7949251]
[1764673859689,3.4034525,128.29,128.28,69.6949251]
[1764673859889,4.1034525,128.29,128.28,61.9]
[1764673864094,3.4034525,128.3,128.28,70.36544745]
[1764673866802,29.0323165,128.31,128.28,70.36544745]
[1764673867280,8.62,128.31,128.28,70.36544745]
[1764673867479,3.4034525,128.3,128.28,70.36544745]
[1764673868080,12.7234525,128.31,128.28,70.36544745]
[1764673868282,12.0234525,128.31,128.28,70.36544745]
[1764673868701,12.7234525,128.31,128.28,70.36544745]
[1764673869398,12.0234525,128.31,128.29,0.67]
[1764673869601,0.7,128.34,128.29,62.57]
[1764673869788,3.4034525,128.33,128.29,62.57]
[1764673870105,3.4034525,128.32,128.29,61.9]
[1764673870401,3.4034525,128.32,128.3,0.67]
[1764673870601,4.1034525,128.33,128.3,0.67]
[1764673870791,4.1034525,128.33,128.31,7.79362481]
[1764673871380,4.1034525,128.34,128.31,69.69362481]
[1764673871577,4.1034525,128.34,128.31,89.17768684]
[1764673871984,4.1034525,128.34,128.31,27.97768684]
[1764673881609,4.1034525,128.34,128.31,89.87768684]
[1764673886302,0.7,128.34,128.31,89.87768684]
[1764673886517,4.1034525,128.34,128.31,89.87768684]
[1764673888311,0.7,128.34,128.31,89.87768684]
[1764673889518,4.1034525,128.34,128.31,89.87768684]
[1764673891624,0.72,128.33,128.27,9.52]
[1764673891921,3.4034525,128.32,128.28,8.49504099]
[1764673892305,0.71,128.32,128.3,7.79423226]
[1764673893213,4.1134525,128.32,128.3,7.79423226]
[1764673896525,2.88969265,128.32,128.3,7.79423226]
[1764673896924,0.71,128.32,128.3,7.79423226]
[1764673897222,2.88969265,128.32,128.3,7.79423226]
[1764673898200,2.88969265,128.31,128.28,7.79528692]
[1764673898511,2.17969265,128.3,128.28,69.69528692]
[1764673898715,2.88969265,128.3,128.28,69.69528692]
[1764673901747,2.17969265,128.3,128.28,69.69528692]
[1764673902043,2.89969265,128.29,128.28,7.79528692]
[1764673902353,2.89969265,128.29,128.24,16.308864]
[1764673902354,16.308864,128.28,128.23,0.2]
[1764673902503,20.6682493,128.24,128.23,0.2]
[1764673902706,33.73880892,128.24,128.23,0.2]
[1764673902914,35.91850157,128.24,128.23,0.2]
[1764673903101,27.10855665,128.24,128.23,0.2]
[1764673903319,8.62,128.24,128.23,0.88]
[1764673903723,2.17969265,128.25,128.23,0.88]
[1764673904108,28.01850157,128.24,128.23,0.2]
[1764673904322,16.308864,128.2,128.14,8.00384853]
[1764673904554,17.42994492,128.19,128.16,0.88]
[1764673904719,16.308864,128.19,128.18,0.88]
[1764673904930,3.12646553,128.2,128.18,8.68137709]
[1764673905112,16.308864,128.21,128.19,0.68]
[1764673905516,2.17969265,128.21,128.19,0.68]
[1764673905811,2.17969265,128.2,128.19,8.48090278]
[1764673906027,2.17969265,128.2,128.18,0.2]
[1764673906311,36.64850157,128.19,128.18,0.2]
[1764673907944,44.44942207,128.19,128.18,0.2]
[1764673910839,27.16855665,128.19,128.18,0.2]
[1764673911026,27.16855665,128.19,128.18,0.88]
[1764673911337,2.17969265,128.2,128.18,0.88]
[1764673911541,2.17969265,128.21,128.19,0.68]
[1764673912874,2.17969265,128.21,128.19,8.48086887]
[1764673913144,2.84969265,128.2,128.18,0.2]
[1764673913449,19.66963757,128.19,128.18,0.2]
[1764673913618,20.33963757,128.19,128.18,0.2]
[1764673914453,28.14055807,128.19,128.18,0.2]
[1764673915118,20.33963757,128.19,128.18,0.2]
[1764673915322,19.66963757,128.19,128.18,0.2]
[1764673916147,28.14055807,128.19,128.18,0.2]
[1764673916348,20.33963757,128.19,128.18,0.2]
[1764673916646,19.66963757,128.19,128.18,0.2]
[1764673917234,27.47055807,128.19,128.18,0.2]
[1764673917558,19.66963757,128.19,128.18,0.2]
[1764673917727,27.47055807,128.19,128.18,0.2]
[1764673917922,28.14055807,128.19,128.18,0.2]
[1764673918239,25.96086542,128.19,128.18,0.2]
[1764673918445,28.14055807,128.19,128.18,0.2]
[1764673921035,10.85969265,128.19,128.18,0.2]
[1764673922648,28.14055807,128.19,128.18,0.2]
[1764673923955,25.11880892,128.17,128.16,0.2]
[1764673924247,35.97850157,128.17,128.16,0.2]
[1764673924447,44.45063935,128.17,128.16,0.2]
[1764673924631,41.6009467,128.17,128.16,0.2]
[1764673924832,43.78063935,128.17,128.16,0.2]
[1764673925050,44.45063935,128.17,128.16,0.2]
[1764673925247,47.5779604,128.17,128.16,0.2]
[1764673926248,38.2279604,128.17,128.16,0.2]
[1764673926430,43.78063935,128.17,128.16,0.2]
[1764673927557,44.45063935,128.17,128.16,0.2]
[1764673927876,9.47994492,128.16,128.14,0.2]